Cogmind - Beta 13 @@@ ROGUE MODE // 2024.03.31 @ 22:39:51 Player: Prince Result: Destroyed by S-10 Pest with Light Assault Rifle Performance ------------- Evolutions (2) 1000 Regions Visited (3) 600 Robots Destroyed (44) 220 Value Destroyed (1234) 1234 Prototype IDs (5) 100 Alien Tech Used (0) 0 Bonus (18) 18 TOTAL SCORE: 3172 Bonus ------- Follower Combat Kills 231 Friendly Fire -213 Cogmind --------- Core Integrity 0/550 Matter 289/300 Energy 160/160 System Corruption 2% Temperature Hot (261) Movement Walking (190) Ox1 Location -8/Materials Parts ------- > --- POWER (1) -------- Light Nuclear Core > --- PROPULSION (4) --- Aluminum Leg Aluminum Leg Aluminum Leg Aluminum Leg > --- UTILITY (4) ------ Medium Storage Unit Large Storage Unit Advanced Visual Processing Unit Hardlight Generator > --- WEAPON (2) ------- Particle Gun Pulse Rifle > --- INVENTORY (15) --- Light Nuclear Core Light Nuclear Core Light Nuclear Core Visual Processing Unit Improved Sensor Array Terrain Scanner Particle Gun Particle Gun Subdweller Machine Gun Minigun Battle Cannon Bore Cannon Missile Launcher Ripper Peak State ------------ > --- POWER ------------ Light Angular Momentum Engine > --- PROPULSION ------- Aluminum Leg Aluminum Leg Makeshift Leg Myomer Leg > --- UTILITY ---------- Large Storage Unit Scrap Shield V3-11A's Pendant > --- WEAPON ----------- Beamcaster Beamcaster > --- INVENTORY -------- Ion Engine Light Ion Engine Airjet Airjet Structural Scanner Subdweller Optics Light Armor Plating Riot Gun Battle Cannon Battle Cannon Bore Cannon Subdweller Shrapnel Launcher Ripper [Rating: 39] Favorites ----------- Power Light Angular Momentum Engine Engine Light Angular Momentum Engine Power Core Light Nuclear Core Propulsion Aluminum Leg Treads Light Treads Leg Aluminum Leg Hover Unit Airjet Utility Large Storage Unit Device V3-11A's Pendant Storage Large Storage Unit Processor Advanced Visual Processing Unit Protection Light Armor Plating Weapon Battle Cannon Energy Gun Medium Laser Ballistic Gun Heavy Assault Rifle Ballistic Cannon Battle Cannon Launcher Subdweller Shrapnel Launcher Slashing Weapon Ripper Build | -11 -10 -10 -8 ------- Run | Yrd Mat Sub Mat Slots Evolved 4 | . . . 4 Power . | . . . . Propulsion 2 | . . . 2 Utility 2 | . . . 2 Weapon . | . . . . Parts Attached 93 | 7 8 12 66 Power 11 | 2 . 2 7 Engine 9 | 2 . 2 5 Core 2 | . . . 2 Reactor . | . . . . Propulsion 34 | 2 3 3 26 Treads 5 | . 3 . 2 Leg 23 | 2 . 3 18 Wheel . | . . . . Hover 6 | . . . 6 Flight . | . . . . Utility 20 | 1 3 3 13 Device 9 | . 1 2 6 Storage 4 | 1 2 . 1 Processor 2 | . . . 2 Hackware . | . . . . Protection 5 | . . 1 4 Artifact . | . . . . Weapon 28 | 2 2 4 20 Energy Gun 12 | 1 1 1 9 Energy Cannon . | . . . . Ballistic Gun 9 | 1 1 . 7 Ballistic Cannon 4 | . . 2 2 Launcher 2 | . . . 2 Special Weapon . | . . . . Impact Weapon . | . . . . Slashing Weapon 1 | . . 1 . Piercing Weapon . | . . . . Special Melee Weapon . | . . . . Unidentified Prototypes 2 | . . 1 1 Corrupted Parts 1 | . . . 1 System Corruption 2 | . . . 2 Parts Lost 25 | . . . 25 Power 6 | . . . 6 Propulsion 7 | . . . 7 Utility 6 | . . . 6 Weapon 6 | . . . 6 Highest Loss Streak 12 | . . . 12 To Critical Strikes . | . . . . Average Slot Usage (%) 98 | . 92 100 89 Engine 12 | . 14 14 4 Treads 1 | . 24 . . Leg 25 | . 3 27 24 Hover 1 | . . . 7 Device 13 | . 6 13 11 Storage 13 | . 14 14 11 Energy Gun 1 | . 13 . 6 Ballistic Gun 2 | . 14 . 8 Ballistic Cannon 13 | . . 16 1 Slashing Weapon 8 | . . 10 . Naked Turns . | . . . . Heaviest Build 58 | 12 28 44 58 Greatest Support 65 | 20 40 40 65 Greatest Overweight (x) 9 | . 1 1 9 Average Overweight (x) . | . . . . Largest Inventory Capacity 15 | 8 15 15 15 Average Capacity 14 | 6 13 15 15 Most Carried 15 | 7 12 15 15 Average Carried 13 | 4 8 14 12 Final Capacity 15 | 8 15 15 15 Final Carried 15 | 4 10 15 14 Class Distribution -------------------- 90% | Mutant 9% | Scavenger-Mutant Dominant Class ---------------- Mutant | -10/Materials Mutant | -10/Subcaves Scavenger-Mutant | -8/Materials Resources | -11 -10 -10 -8 ----------- Run | Yrd Mat Sub Mat Matter Collected 1963 | 217 77 460 1209 Remotely . | . . . . Salvage Created 1608 | . 77 187 1344 Parts 103 | . 10 16 77 Haulers Intercepted 1 | . . . 1 Recyclers Shooed 1 | . . . 1 Parts Field Recycled . | . . . . Retrieved Matter . | . . . . Parts Self-Destructed 14 | . . 14 . Prevented . | . . . . Kills | -11 -10 -10 -8 ------- Run | Yrd Mat Sub Mat Combat Hostiles Destroyed 26 | . 1 4 21 Guns 17 | . 1 1 15 Cannons 3 | . . 3 . AOE 5 | . . . 5 Classes Destroyed 10 | . 2 3 5 Worker 6 | . . . 6 Builder 5 | . 2 . 3 Hauler 1 | . . . 1 Recycler 3 | . . . 3 Watcher 2 | . . . 2 Swarmer 3 | . . 1 2 Grunt 14 | . 1 . 13 Sentry 6 | . . 1 5 Hunter 1 | . . . 1 Subdweller 2 | . . 2 . Thug 1 | . . 1 . Best Kill Streak 4 | . 3 2 4 Combat Bots Only 3 | . 1 2 3 Max Kills in Single Turn 2 | . 1 2 2 Gunslinging . | . . . . Exploded 2 | . . . 2 Melee . | . . . . Uniques/NPCs Destroyed . | . . . . Combat | -11 -10 -10 -8 -------- Run | Yrd Mat Sub Mat Hostile Shots Fired 318 | . 20 20 278 Missed 89 | . 4 8 77 Damage Taken 3642 | . 178 306 3158 Core 600 | . 34 16 550 Absorbed by Shields . | . . . . Core Remaining (%) 90 | 100 . 80 . Volleys Fired 164 | . 16 19 129 Largest 2 | . 2 2 2 Hottest 150 | . 70 96 150 Shots Fired 288 | . 32 37 219 Gun 245 | . 32 18 195 Cannon 35 | . . 19 16 Launcher 8 | . . . 8 Special . | . . . . Kinetic 167 | . 16 26 125 Thermal 114 | . 16 11 87 Explosive . | . . . . Electromagnetic 7 | . . . 7 Robot Hit Streak 20 | . 12 20 16 Robot Miss Streak 10 | . 4 2 10 Penetration Max 1 | . . . 1 Secondary Targets 3 | . . . 3 Max Gunslinging Chain 1 | . . . 1 Shots Hit Robots 175 | . 19 25 131 Core Hits 73 | . 6 9 58 Critical Kills 1 | . . . 1 Critical Parts Destroyed 5 | . . . 5 Critical Strikes 17 | . 2 3 12 Burn 10 | . 2 2 6 Destroy 6 | . . . 6 Blast 1 | . . 1 . Melee Attacks 21 | . . 21 . Impact . | . . . . Slashing 21 | . . 21 . Piercing . | . . . . Sneak Attacks 2 | . . 2 . Combat Hostiles . | . . . . Follow-up Attacks . | . . . . Damage Inflicted 3708 | . 237 442 3029 Guns 2491 | . 237 148 2106 Cannons 395 | . . 221 174 Explosions 749 | . . . 749 Melee 73 | . . 73 . Ramming . | . . . . Kinetic 2153 | . 102 276 1775 Thermal 1386 | . 135 93 1158 Explosive . | . . . . Electromagnetic 96 | . . . 96 Impact . | . . . . Slashing 73 | . . 73 . Piercing . | . . . . Highest Corruption 2 | . 1 1 2 Average Corruption 1 | . 1 1 2 Corruption Purged . | . . . . Corruption Blocked . | . . . . Effects 94 | . 1 79 14 Message Errors 23 | . . 21 2 Matter Fused 22 | . . 19 3 Heat Flow Errors 11 | . . 11 . Energy Discharges 10 | . 1 9 . Data Loss (minor) 17 | . . 12 5 Data Loss (major) 4 | . . 3 1 Misfires 3 | . . 3 . Alerts 2 | . . 1 1 Weapon Failures 2 | . . . 2 Overload Shots . | . . . . Overflow Damage 67 | . . 24 43 Projectiles 11 | . . 11 . Explosions 43 | . . . 43 Melee 13 | . . 13 . Knockbacks 2 | . . 2 . Impact . | . . . . Kinetic 2 | . . 2 . Secondary . | . . . . Self-Inflicted Damage 169 | . . . 169 Shots 5 | . . . 5 Rammed . | . . . . Targets Rammed . | . . . . Kicked . | . . . . Crushed . | . . . . Highest Temperature 488 | . 126 261 488 Average Temperature 106 | . 52 97 117 Received Heat Transfer 1416 | . 96 24 1296 Effects 7 | . . . 7 Shutdowns 2 | . . . 2 Energy Bleed 2 | . . . 2 Interference 3 | . . . 3 Siege Activations . | . . . . Robots Corrupted . | . . . . Combat Hostiles . | . . . . Parts Fried . | . . . . Impact Corruptions . | . . . . Robots Melted 1 | . . . 1 Combat Hostiles 1 | . . . 1 Parts Melted 6 | . . 1 5 Heat Transferred 3578 | . 555 407 2616 Parts Sabotaged . | . . . . Parts Stolen . | . . . . Parts Stripped . | . . . . Power Chain Reactions 1 | . . . 1 Alert | -11 -10 -10 -8 ------- Run | Yrd Mat Sub Mat Peak Influence 298 | . 101 . 298 Initial 108 | . . . 108 Average 104 | . 22 . 138 Maximum Alert Level 1 | . . . 1 Low Security (%) 83 | 100 100 . 77 Level 1 16 | . . . 22 Level 2 . | . . . . Level 3 . | . . . . Level 4 . | . . . . Level 5 . | . . . . High Security . | . . . . Max Security . | . . . . Squads Dispatched 5 | . 1 . 4 Investigation 3 | . 1 . 2 Extermination . | . . . . Reinforcement 2 | . . . 2 Assault . | . . . . Garrison . | . . . . Intercept . | . . . . Searches Triggered . | . . . . Construction Impeded 1 | . . . 1 Haulers Reinforced . | . . . . Active Scanning Responses . | . . . . Cargo Convoy Interrupts . | . . . . Stealth | -11 -10 -10 -8 --------- Run | Yrd Mat Sub Mat Distress Signals 4 | . . . 4 Communications Jammed . | . . . . Distress Signals . | . . . . Times Spotted 79 | . 5 37 37 Peak Tracking Total 6 | . 2 6 4 Tactical Retreats 2 | . 1 1 . Traps | -11 -10 -10 -8 ------- Run | Yrd Mat Sub Mat Traps Triggered 5 | . 2 3 . Indirectly . | . . . . Trap Hack Attempts . | . . . . Triggered . | . . . . Disarmed . | . . . . Reprogrammed . | . . . . Reused . | . . . . Traps Extracted . | . . . . Installed . | . . . . Triggered . | . . . . Machines | -11 -10 -10 -8 ---------- Run | Yrd Mat Sub Mat Machines Disabled 5 | . . . 5 Max in Single Turn 1 | . . . 1 Machines Repaired . | . . . . Machines Dismantled . | . . . . Machines Sabotaged . | . . . . Overloaded Fab Kills . | . . . . Hacking | -11 -10 -10 -8 --------- Run | Yrd Mat Sub Mat Machines Accessed 11 | . 4 1 6 Terminals 8 | . 4 . 4 Fabricators . | . . . . Repair Stations . | . . . . Recycling Units 1 | . . . 1 Scanalyzers 1 | . . . 1 Garrison Access . | . . . . Total Hacks 30 | . 10 1 19 Successful 17 | . 6 1 10 Failed 13 | . 4 . 9 Catastrophic 3 | . 1 . 2 Database Lockouts . | . . . . Manual 16 | . . 16 . Terminals 26 | . 10 . 16 Fabricators . | . . . . Repair Stations . | . . . . Recycling Units 2 | . . . 2 Scanalyzers 1 | . . . 1 Garrison Access . | . . . . Terminal Hacks 14 | . 6 1 7 Record 3 | . 1 1 1 Prototype ID Bank 2 | . 1 . 1 Emergency Access Points 1 | . . . 1 Alert Level 2 | . 1 . 1 Unreport Threat 1 | . . . 1 Locate Traps 2 | . . . 2 Security Status 1 | . 1 . . Recall Investigation 1 | . 1 . . Hauler Manifests 1 | . 1 . . Fabricator Hacks . | . . . . Repair Station Hacks . | . . . . Recycling Unit Hacks 2 | . . . 2 Report Inventory 1 | . . . 1 Retrieve Components 1 | . . . 1 Scanalyzer 1 | . . . 1 Insert Component 1 | . . . 1 Garrison Access Hacks . | . . . . Unauthorized Hacks . | . . . . Terminals . | . . . . Fabricators . | . . . . Repair Stations . | . . . . Recycling Units . | . . . . Scanalyzers . | . . . . Garrison Access . | . . . . Data Cores Recovered . | . . . . Used . | . . . . Hacking Detections 7 | . 3 . 4 Full Trace Events 4 | . 2 . 2 Feedback Events . | . . . . Feedback Blocked . | . . . . Robot Schematics Acquired . | . . . . Robots Built . | . . . . Authchips . | . . . . Time . | . . . . Total Robot Build Rating . | . . . . Part Schematics Acquired . | . . . . Parts Built . | . . . . Authchips . | . . . . Time . | . . . . Total Part Build Rating . | . . . . Parts Repaired . | . . . . Time . | . . . . Parts Recycled . | . . . . Recycled Matter . | . . . . Retrieved Matter . | . . . . Retrieved Components 10 | . . . 10 Parts Scanalyzed . | . . . . Part Schematics Acquired . | . . . . Parts Damaged . | . . . . Bothacking | -11 -10 -10 -8 ------------ Run | Yrd Mat Sub Mat Used RIF Installer . | . . . . Robots Hacked . | . . . . Non-combat . | . . . . Combat . | . . . . Robot Hacks Applied . | . . . . Relay Couplers Released . | . . . . Fabnet Peak Effective % . | . . . . Robots Rewired . | . . . . Allies Hacked . | . . . . Hacks Repelled . | . . . . Allies | -11 -10 -10 -8 -------- Run | Yrd Mat Sub Mat Total Allies 11 | . . 11 . Largest Group 8 | . . 8 7 Highest-Rated Group 152 | . . 152 133 Highest-Rated Ally 19 | . . 19 19 Total Orders . | . . . . Ally Attacks 50 | . . 23 27 Total Damage 921 | . . 390 531 Kills 12 | . . 4 8 Allies Corrupted . | . . . . Allies Melted . | . . . . Intel | -11 -10 -10 -8 ------- Run | Yrd Mat Sub Mat Robot Analysis Total . | . . . . Derelict Logs Recovered 1 | . . 1 . Drone Launches . | . . . . Drone Recoveries . | . . . . Exploration | -11 -10 -10 -8 ------------- Run | Yrd Mat Sub Mat Turns Passed 12681 | 63 628 10284 1706 Spaces Moved 6291 | 46 266 5258 721 Core 17 | 11 . . 6 Treads 302 | . 199 103 . Legs 5820 | 35 67 5155 563 Wheels . | . . . . Hover 152 | . . . 152 Flight . | . . . . Fastest Speed 43 | 50 120 120 43 Average Speed 182 | 103 150 189 146 Slowest Speed 500 | 120 240 190 500 Overloaded Moves . | . . . . Propulsion Burnouts . | . . . . Robots Hopped . | . . . . Cave-ins Triggered . | . . . . Exploration Rate (%) 48 | 3 52 95 42 Regions Visited 3 Branch Regions 1 Pre-discovered Areas . | . . . . Known Exits Taken . | . . . . Unknown Exits Taken 3 | 1 1 1 . Scrap Searched 18 | . . 18 . Spaces Dug 4 | . . 4 . Terrain Destroyed 79 | . . 8 71 Melee 4 | . . 4 . Projectile 12 | . . 4 8 AOE 63 | . . . 63 Terrain Rammed . | . . . . Walls Destroyed . | . . . . Machines Disabled . | . . . . Actions | -11 -10 -10 -8 --------- Run | Yrd Mat Sub Mat Total 7207 | 59 459 5527 1162 Wait 515 | . 160 181 174 Move 6288 | 45 265 5257 721 Hop . | . . . . Pick Up 83 | 7 9 20 47 Fast Attach 4 | 3 . . 1 Attach 36 | 3 4 . 29 Detach 2 | . 1 . 1 Swap 53 | 1 4 12 36 Drop 41 | . . 17 24 Fire 164 | . 16 19 129 Melee 21 | . . 21 . Ram . | . . . . Kick . | . . . . Crush . | . . . . Escape Stasis . | . . . . Rewire . | . . . . Trap . | . . . . Miscellaneous . | . . . . Route ------- -11/Scrapyard -10/Materials (discovered 3 exits: [*Mat] / [*Min] / *Sub) -10/Subcaves (discovered 3 exits: *Mat x2 / [*Rec]) -8/Materials (discovered 3 exits: *Fac x2 / [*Sto]) History --------- Turn | Location | Event 6 | -11/Scrapyard | Discovered new exit (range 15) 64 | -11/Scrapyard | Entered Materials 260 | -10/Materials | Discovered new exit (range 11) 302 | -10/Materials | Build established: Mutant 403 | -10/Materials | Discovered new exit (range 15) 495 | -10/Materials | Discovered new exit (range 5) 692 | -10/Materials | Entered Subcaves 888 | -10/Subcaves | Ambushed by swarm of Subdwellers 1659 | -10/Subcaves | Visited triangular shrine 1671 | -10/Subcaves | Found Prototype Device 1697 | -10/Subcaves | Identified V3-11A's Pendant 1953 | -10/Subcaves | Approached by friendly Subdweller 2540 | -10/Subcaves | Shifting Twisted Machinery released Scrap Shield 2852 | -10/Subcaves | Befriended Subdweller 2857 | -10/Subcaves | Befriended Subdweller 2884 | -10/Subcaves | Learned 4 Materials zone layouts 2925 | -10/Subcaves | Visited Clippyterm 3126 | -10/Subcaves | Shifting Twisted Machinery released Ripper 4132 | -10/Subcaves | Discovered new exit (range 9) 4182 | -10/Subcaves | Lost 4 allies 4402 | -10/Subcaves | Befriended Subdweller 4432 | -10/Subcaves | Shifting Twisted Machinery released Sub. Optics 4451 | -10/Subcaves | Shifting Twisted Machinery released Mak. Leg 4697 | -10/Subcaves | Befriended Subdweller 6072 | -10/Subcaves | Befriended Subdweller 6072 | -10/Subcaves | Befriended Subdweller 6081 | -10/Subcaves | Shifting Twisted Machinery released Battle Rifle 6105 | -10/Subcaves | Shifting Twisted Machinery released Sub. Power Source 6182 | -10/Subcaves | Discovered new exit (range 10) 6347 | -10/Subcaves | Befriended Subdweller 6347 | -10/Subcaves | Befriended Subdweller 6547 | -10/Subcaves | Befriended Subdweller 6547 | -10/Subcaves | Befriended Subdweller 6667 | -10/Subcaves | Discovered new exit (range 6) 10976 | -10/Subcaves | Entered Materials 10976 | -8/Materials | Accompanied by 7 allies 10976 | -8/Materials | Evolved 4 slots: Propulsion x2, Utility x2 10977 | -8/Materials | Identified exit to Factory 11181 | -8/Materials | Lost 4 allies 11533 | -8/Materials | Core integrity fell below 50% 11535 | -8/Materials | Lost 12 parts (3p3n3u3w) 11824 | -8/Materials | Build established: Scavenger-Mutant 12167 | -8/Materials | Lost 5 parts (3n2u) 12280 | -8/Materials | Discovered new exit (range 10) 12401 | -8/Materials | Core integrity fell below 20% 12425 | -8/Materials | Lost 3 parts (1n2w) 12629 | -8/Materials | Discovered exit to Factory (range 20) 12682 | -8/Materials | Destroyed by S-10 Pest with Light Assault Rifle Last Messages --------------- lost. K-01 Serf cleans the Pressure Siphon. System corrupted: Component data lost. K-01 Serf cleans the Hadron Collector. EXIT=FOUND: FACTORY K-01 Serf cleans the Hadron Collector. K-01 Serf cleans the Atomic Centrifuge. K-01 Serf cleans the Hadron Collector. K-01 Serf cleans the Atomic Centrifuge. K-01 Serf cleans the Hadron Collector. K-01 Serf cleans the Atomic Centrifuge. K-01 Serf cleans the Hadron Collector. System corrupted: Pulse Rifle failed to cycle. Lgt. Ion Engine melted. S-10 Pest destroyed. K-01 Serf collects debris. K-01 Serf cleans the Hadron Collector. K-01 Serf collects debris. K-01 Serf cleans the Hadron Collector. K-01 Serf collects debris. Map ----- +----------------------------------------------------+ | ??????????????????????????????# | | ?????????????????????????###### | | ????????????????????????? ! | | ?????????????????????????####### ########## ## | | ?????????????????????????####### # #?# ## | | ????????????????????????? # # """ ### ## | | ????????????????????????? + + R" ### ## | | ????????????????????????? # # """ ### ## | | ????????????????? ??????####+## # ### ## | | ???????????????? ?????? # # ### ## | | ???????????????? ?????"" # ########## ## | | ????????????????" ?????"" # #????#####%## | | ??????????????""" ?????"" # ## ## #### ## | | ??????????????""" ????? # ####### = # | | ??????????# ? ????? # = # | | ??????????# ????#### = % * | | ??????????# """ ????? # = = & # | | ??????????# """ ?????#######+######## = # | | ??????????# """ ??????# [ #### ## | | ??????????? ?????## =% ####%## | | ??????????? ?????# """ """ """ ####% | | ??????????# """ ?????## """ """ """ #?## | | ??????????# """ ##????# """ """ """ #?## % | | ?????????## """ #?#### ####& | | ?????????# ##############+######## | | ?????????# < ! [%@ ^ ^ ^^ | | ?????????# ss% | | ?????????####+### k ^ | | ????????????????# """" """"k """" | | ????????????????# """" """" """" | | ????????????????# """" """" """ | | ????????????????# ^ | | ????????????????#### | | ??????????????????## | | ??????????????????## a | | ??????????????????## | | ??????????????????## ########## | | ??????????????????##### ########### ########## | | ?????????????????????## ########### ########## | | ?????????????????????## ######### # # # | | ????????????????????## # # # ! # | | ????????????????????## T + # # ! =%[ # | | ????????????????????## # " # [ = # | | ?????????????????######+#" # *= [*+ | | ?????????????????## ] " # == ! %# | | ?????????????????## /" # !! # | | ?????????????????## """ " # !! # | | ?????????????????## """ " # # | | ?????????????????## """ " # ########## | | ?????????????????## #""##+#### # # | +----------------------------------------------------+ Best States ------------- Heat Dissipation 31 Energy Generation 18 Energy Capacity 265 Matter Stores 300 Matter Capacity 300 Sight Range 20 Robot Scan Range 15 Terrain Scan Density 10 Armor Coverage 800 Evasion (%) 55 Recoil Reduction 2 Item Schematics ----------------- None Robot Schematics ------------------ None Fabricated ------------ Nothing Alien Tech Used ----------------- None Achievements -------------- GoHome() Please Form A Line Storm Trooper The More The Merrier Challenges ------------ None Game ------ Seed HellfireSpliceSheargun Manual? 0 Play Time 01:15:02 Cumulative 2.6 hours Start 2024.03.31 @ 21:24:21 End 2024.03.31 @ 22:39:51 Sessions 1 Manual Loads 0 Difficulty Rogue Special Mode None Game No. 5 Rogue 5 Adventurer 0 Explorer 0 Win Type - Total 0 Types 0/0/0/0/0/0/0/0/0 Lore% 0 Gallery% 7 Achievement% 8 Wizard Run 0 Options --------- Layout 1 ASCII 0 Keyboard 0 Movement Mouse Keybinds 0 Fullscreen 2 Font 32/SmallcapsGlow Map View 50x35 Zoom Use 0% Tactical HUD 0 Map Filters NONE Filters NONE Steam 1 RUN: c6136045-1441-49be-af25-0168d86e252c